bitfinex-derivatives/quotes_SOLF0:USTF0_20241224
["timestamp","ask_amount","ask_price","bid_price","bid_amount"]
[1735046405348,8.3186283,192.48,192.4,8.3186283]
[1735046405548,8.3186283,192.48,192.42,8.3186283]
[1735046405753,8.3186283,192.48,192.44,2.6022]
[1735046406148,12.97798245,192.54,192.41,12.97798245]
[1735046406647,2.6015,192.49,192.41,12.97798245]
[1735046407247,2.6015,192.49,192.44,2.6021]
[1735046409654,12.97798245,192.5,192.39,1.5083]
[1735046409846,3.3,192.55,192.39,1.5083]
[1735046409847,12.97798245,192.47,192.39,1.5083]
[1735046410048,12.97798245,192.47,192.38,3.0973]
[1735046410647,12.97798245,192.47,192.38,5.7002]
[1735046411054,2.6025,192.42,192.38,5.7002]
[1735046412753,2.6027,192.41,192.37,2.6031]
[1735046413252,12.97798245,192.44,192.33,3.1442]
[1735046413559,12.97798245,192.41,192.33,3.1442]
[1735046414457,2.6032,192.37,192.33,5.7478]
[1735046420664,2.6035,192.35,192.31,2.6038]
[1735046421760,2.6032,192.37,192.32,2.6037]
[1735046421963,12.97798245,192.41,192.29,12.97798245]
[1735046422361,2.6034,192.35,192.3,2.604]
[1735046423760,2.6034,192.35,192.27,3.3]
[1735046424058,12.97798245,192.35,192.23,17.52968245]
[1735046424763,2.6043,192.29,192.24,2.6048]
[1735046425167,12.97798245,192.35,192.23,17.52968245]
[1735046425360,2.6043,192.29,192.25,2.6047]
[1735046426760,12.97798245,192.32,192.23,4.5517]
[1735046428077,12.97798245,192.32,192.25,2.6046]
[1735046429471,2.6041,192.3,192.25,2.6046]
[1735046429677,12.97798245,192.32,192.25,2.6046]
[1735046429973,2.6042,192.3,192.26,2.6046]
[1735046430381,16.27798245,192.35,192.23,17.52968245]
[1735046430673,2.6036,192.34,192.23,17.52968245]
[1735046430872,3.34,192.4,192.26,12.97798245]
[1735046431178,12.97798245,192.38,192.31,2.6039]
[1735046431374,12.97798245,192.38,192.27,3.34]
[1735046431772,12.97798245,192.38,192.23,17.52968245]
[1735046431977,12.97798245,192.38,192.24,3.34]
[1735046432281,2.6039,192.32,192.27,2.6044]
[1735046432476,12.97798245,192.38,192.24,3.34]
[1735046432682,12.97798245,192.38,192.26,12.97798245]
[1735046432982,2.603,192.38,192.26,12.97798245]
[1735046433281,2.603,192.38,192.29,12.97798245]
[1735046433771,12.97798245,192.41,192.3,3.34]
[1735046433979,15.58058245,192.41,192.36,2.6031]
[1735046434578,2.6028,192.4,192.36,2.6031]
[1735046434978,12.97798245,192.41,192.36,2.6031]
[1735046435178,15.58058245,192.41,192.36,2.6031]
[1735046435586,2.6026,192.41,192.36,2.6031]
[1735046435789,2.6025,192.42,192.32,12.97798245]
[1735046437586,2.6023,192.43,192.32,12.97798245]
[1735046437889,2.6023,192.43,192.35,2.6034]
[1735046438086,2.6023,192.43,192.32,12.97798245]
[1735046438486,2.6023,192.43,192.39,2.6029]
[1735046439980,12.97798245,192.44,192.4,2.6027]
[1735046440181,12.97798245,192.47,192.36,3.34]
[1735046440383,12.97798245,192.5,192.38,12.97798245]
[1735046440689,2.6013,192.51,192.46,2.6018]
[1735046441391,16.31798245,192.53,192.42,3.34]
[1735046441392,12.97798245,192.53,192.42,3.34]
[1735046441991,2.601,192.53,192.48,2.6016]
[1735046442191,12.97798245,192.56,192.44,12.97798245]
[1735046442796,2.6007,192.55,192.49,2.6015]
[1735046442988,12.97798245,192.56,192.44,12.97798245]
[1735046443188,61.76222941,192.62,192.44,12.97798245]
[1735046443383,12.97798245,192.6,192.47,12.97798245]
[1735046443588,12.97798245,192.6,192.48,4.8005]
[1735046444190,2.6002,192.59,192.48,4.8005]
[1735046444694,12.97798245,192.6,192.48,4.8005]
[1735046445198,61.76222941,192.62,192.48,4.8005]
[1735046445394,12.97798245,192.6,192.48,4.8005]
[1735046446596,2.6006,192.57,192.51,2.6012]
[1735046446789,12.97798245,192.6,192.48,4.8005]
[1735046446990,12.97798245,192.6,192.48,8.1405]
[1735046447186,2.6008,192.55,192.49,2.6015]
[1735046447386,12.97798245,192.6,192.48,8.1405]
[1735046447791,2.6005,192.57,192.5,2.6013]
[1735046447991,12.97798245,192.6,192.5,2.6013]
[1735046448197,12.97798245,192.6,192.48,8.1405]
[1735046448397,12.97798245,192.6,192.52,2.601]
[1735046448899,2.6003,192.58,192.53,2.601]
[1735046449197,12.97798245,192.6,192.53,2.601]
[1735046449390,3.32,192.61,192.5,12.97798245]
[1735046449787,2.6002,192.59,192.54,2.6008]
[1735046449988,2.6002,192.59,192.5,12.97798245]
[1735046450795,2.6005,192.57,192.5,12.97798245]
[1735046451301,12.97798245,192.6,192.48,8.1205]
[1735046451491,2.6007,192.56,192.5,2.6012]
[1735046451690,2.6007,192.56,192.48,8.1205]
[1735046451890,75.80706011,192.74,192.52,12.97798245]
[1735046452094,12.97798245,192.65,192.53,3.32]
[1735046452497,12.97798245,192.65,192.54,2.6008]
[1735046452698,28.94274681,192.72,192.53,3.32]
[1735046452901,12.97798245,192.68,192.53,3.32]
[1735046453602,2.5994,192.65,192.58,2.6002]
[1735046453803,12.97798245,192.68,192.56,1.5194]
[1735046454200,2.5992,192.66,192.56,1.5194]
[1735046455301,2.5994,192.65,192.59,2.6002]
[1735046456201,12.97798245,192.68,192.59,2.6002]
[1735046456396,12.97798245,192.68,192.56,1.5194]
[1735046456597,12.97798245,192.71,192.62,2.5996]
[1735046456802,2.5989,192.69,192.61,12.97798245]
[1735046457201,2.5989,192.69,192.62,1.6324]
[1735046458306,2.599,192.68,192.62,4.232]
[1735046459205,2.5988,192.7,192.64,2.5994]
[1735046459806,12.97798245,192.74,192.62,1.6324]
[1735046460005,2.599,192.68,192.62,4.232]
[1735046460208,12.97798245,192.74,192.62,4.232]
[1735046460506,12.97798245,192.68,192.56,1.5194]
[1735046460703,12.97798245,192.65,192.56,4.9194]
[1735046461209,16.37798245,192.68,192.59,2.6002]
[1735046461605,12.97798245,192.68,192.57,12.97798245]
[1735046461909,2.5991,192.68,192.62,2.5997]
[1735046462307,2.5991,192.68,192.6,12.97798245]
[1735046462905,2.5992,192.67,192.61,2.5998]
[1735046463706,2.5992,192.66,192.61,2.5998]
[1735046464502,2.5991,192.67,192.62,2.5997]
[1735046464807,3.4,192.7,192.6,12.97798245]
[1735046465007,1.5376,192.75,192.6,12.97798245]
[1735046465008,16.37798245,192.74,192.6,12.97798245]
[1735046466409,2.5989,192.69,192.64,2.5994]
[1735046468915,1.5376,192.75,192.67,2.5991]
[1735046469709,7.2356867,192.84,192.68,3.4]
[1735046469908,20.21366915,192.84,192.69,12.97798245]
[1735046470105,12.97798245,192.84,192.69,12.97798245]
[1735046470306,2.5976,192.78,192.69,14.60248245]
[1735046470510,12.97798245,192.84,192.74,2.5981]
[1735046470705,2.5974,192.8,192.74,2.5981]
[1735046472108,2.5975,192.79,192.74,2.5981]
[1735046472303,2.5975,192.79,192.75,2.598]
[1735046472508,12.97798245,192.84,192.75,2.598]
[1735046472806,12.97798245,192.84,192.72,12.97798245]
[1735046473007,12.97798245,192.84,192.77,2.5976]
[1735046473210,12.97798245,192.84,192.74,3.4]
[1735046473410,2.5972,192.82,192.74,3.4]
[1735046474013,2.5972,192.82,192.76,2.5978]
[1735046474209,2.5972,192.82,192.74,3.4]
[1735046474808,2.5972,192.82,192.78,2.5976]
[1735046475016,2.5972,192.81,192.74,3.4]
[1735046475209,12.97798245,192.84,192.74,3.4]
[1735046475409,12.97798245,192.84,192.74,5.9981]
[1735046475609,2.5974,192.8,192.74,5.9981]
[1735046475805,2.5974,192.8,192.74,3.4]
[1735046476010,12.97798245,192.85,192.74,3.4]
[1735046476315,2.5972,192.82,192.74,3.4]
[1735046476508,12.97798245,192.85,192.78,2.5975]
[1735046477210,2.597,192.83,192.78,2.5975]
[1735046477612,12.97798245,192.85,192.78,2.5975]
[1735046478203,2.5972,192.81,192.77,2.5977]
[1735046478506,2.5972,192.81,192.74,3.4]
[1735046478904,2.5972,192.81,192.76,2.5979]
[1735046479115,2.5968,192.84,192.75,12.97798245]
[1735046479414,12.97798245,192.88,192.75,12.97798245]
[1735046479415,12.97798245,192.88,192.78,2.5976]
[1735046479805,2.5971,192.83,192.78,2.5976]
[1735046480008,12.97798245,192.85,192.77,2.5977]
[1735046480208,12.97798245,192.85,192.74,3.4]
[1735046480614,12.97798245,192.85,192.76,2.5978]
[1735046480812,12.97798245,192.85,192.74,3.4]
[1735046481009,12.97798245,192.88,192.74,3.4]
[1735046481605,2.5972,192.82,192.77,2.5977]
[1735046482007,12.97798245,192.88,192.74,3.4]
[1735046482311,2.5969,192.84,192.79,2.5973]
[1735046484114,2.5969,192.84,192.74,3.4]
[1735046484514,12.97798245,192.88,192.74,3.4]
[1735046484917,2.5968,192.84,192.79,2.5973]
[1735046486818,12.97798245,192.88,192.73,3.0918]
[1735046487020,12.97798245,192.88,192.73,6.4918]
[1735046487223,12.97798245,192.83,192.71,3.4]
[1735046487519,12.97798245,192.8,192.69,12.97798245]
[1735046487922,12.97798245,192.8,192.69,16.37798245]
[1735046488124,12.97798245,192.8,192.7,2.5986]
[1735046489422,2.5977,192.77,192.7,2.5986]
[1735046489725,12.97798245,192.8,192.7,2.5986]
[1735046490421,2.598,192.76,192.69,16.37798245]
[1735046490621,2.598,192.76,192.71,2.5985]
[1735046490821,1.4747,192.81,192.69,16.37798245]
[1735046491123,2.5977,192.78,192.73,2.5982]
[1735046491929,2.5977,192.78,192.74,2.5981]
[1735046492833,12.97798245,192.83,192.72,12.97798245]
[1735046493425,1.5552,192.86,192.76,2.5979]
[1735046493624,12.97798245,192.85,192.76,2.5979]
[1735046494332,2.5973,192.8,192.76,2.5979]
[1735046494530,12.97798245,192.85,192.74,2.5981]
[1735046494923,12.97798245,192.85,192.73,1.5348]
[1735046495226,12.97798245,192.85,192.76,2.5979]
[1735046495432,2.5974,192.8,192.76,2.5979]
[1735046496329,2.5974,192.8,192.73,1.5348]
[1735046496330,2.5976,192.78,192.74,2.598]
[1735046497835,12.97798245,192.85,192.73,1.5348]
[1735046498036,2.5978,192.77,192.73,4.133]
[1735046498427,12.97798245,192.85,192.73,1.5348]
[1735046498630,2.5976,192.78,192.74,2.5981]
[1735046502135,2.5975,192.79,192.75,2.598]
[1735046502536,12.97798245,192.85,192.73,1.5348]
[1735046502726,2.5973,192.81,192.76,2.5978]
[1735046503635,1.5552,192.86,192.73,1.5348]
[1735046503838,2.5969,192.83,192.79,2.5974]
[1735046509046,2.5968,192.84,192.8,2.5973]
[1735046509245,7.2356867,192.88,192.79,8.27824748]
[1735046509446,15.51393418,192.88,192.81,8.27824748]
[1735046509646,2.5966,192.86,192.82,2.597]
[1735046512144,2.5966,192.86,192.81,8.27824748]
[1735046512342,2.5966,192.86,192.83,2.5969]
[1735046512747,2.5966,192.86,192.81,8.27824748]
[1735046513345,2.5961,192.9,192.85,2.5966]
[1735046513536,2.5961,192.9,192.85,10.87484748]
[1735046513941,8.27824748,192.91,192.85,8.27824748]
[1735046514142,2.5963,192.88,192.85,8.27824748]
[1735046514746,2.5963,192.88,192.83,8.27824748]
[1735046515349,8.27824748,192.91,192.83,8.27824748]
[1735046515549,8.27824748,192.91,192.85,2.5965]
[1735046515749,32.31728297,192.95,192.83,8.27824748]
[1735046516046,8.27824748,192.9,192.83,8.27824748]
[1735046516244,2.5958,192.92,192.84,2.5968]
[1735046516441,10.65932074,192.95,192.83,8.27824748]
[1735046516646,8.27824748,192.9,192.83,8.27824748]
[1735046517049,8.27824748,192.9,192.8,1.509]
[1735046517247,8.27824748,192.9,192.83,8.27824748]
[1735046517447,2.5963,192.88,192.84,2.5968]
[1735046521148,3.44,192.95,192.83,8.27824748]
[1735046521353,8.27824748,192.91,192.84,3.36]
[1735046521755,2.5963,192.88,192.84,14.23494748]
[1735046521949,8.27824748,192.89,192.84,3.36]
[1735046522353,2.5965,192.87,192.84,3.36]
[1735046522653,8.27824748,192.89,192.84,3.36]
[1735046522951,8.27824748,192.85,192.8,1.509]
[1735046523252,3.44,192.95,192.79,1.52]
[1735046523253,8.27824748,192.83,192.79,1.52]
[1735046523852,8.27824748,192.83,192.76,3.36]
[1735046523853,8.27824748,192.83,192.76,10.87604748]
[1735046524055,8.27824748,192.83,192.76,8.27824748]
[1735046525054,2.5967,192.85,192.76,10.87594748]
[1735046525353,8.27824748,192.83,192.76,8.27824748]
[1735046525852,2.5972,192.81,192.77,2.5977]
[1735046526254,8.27824748,192.83,192.75,3.36]
[1735046526458,8.27824748,192.81,192.74,14.23634748]
[1735046527057,2.5973,192.8,192.75,2.5979]
[1735046527356,2.5973,192.8,192.76,8.27824748]
[1735046527656,2.5972,192.82,192.76,10.87614748]
[1735046528156,8.27824748,192.83,192.74,3.36]
[1735046528659,8.27824748,192.83,192.76,8.27824748]
[1735046529555,2.5972,192.81,192.76,10.87594748]
[1735046530057,2.5969,192.83,192.78,10.87574748]
[1735046531054,2.5969,192.83,192.79,2.5974]
[1735046531257,7.21932074,192.89,192.8,8.27824748]
[1735046531457,8.27824748,192.86,192.8,8.27824748]
[1735046532059,7.21932074,192.91,192.8,8.27824748]
[1735046532257,8.27824748,192.87,192.8,8.27824748]
[1735046532764,10.87464748,192.87,192.82,2.5969]
[1735046532964,8.27824748,192.89,192.82,8.27824748]
[1735046534863,3.36,192.95,192.84,8.27824748]
[1735046535163,28.87728297,192.96,192.85,3.36]
[1735046535372,28.87728297,192.96,192.92,8.27824748]
[1735046535559,28.87728297,192.97,192.92,14.23384748]
[1735046536970,28.87728297,192.97,192.93,2.5956]
[1735046537175,89.22654893,193.0,192.92,11.63824748]
[1735046537360,8.27824748,192.99,192.92,11.63824748]
[1735046537561,8.27824748,192.97,192.93,2.5955]
[1735046541568,10.87314748,192.99,192.93,2.5955]
[1735046541771,8.27824748,192.99,192.94,2.5954]
[1735046542571,10.87274748,193.01,192.93,8.27824748]
[1735046543269,2.5945,193.01,192.95,8.27824748]
[1735046543466,10.87274748,193.01,192.96,2.5951]
[1735046545071,8.27824748,193.01,192.92,4.9192]
[1735046545376,2.5948,192.99,192.94,2.5954]
[1735046548474,8.27824748,192.99,192.91,3.1443]
[1735046548665,8.27824748,192.97,192.91,14.78254748]
[1735046549675,8.27824748,192.97,192.91,11.42254748]
[1735046549872,8.27824748,192.97,192.91,14.78254748]
[1735046550678,2.5954,192.95,192.91,14.78254748]
[1735046551476,2.5954,192.95,192.91,11.42254748]
[1735046551679,2.5954,192.95,192.91,14.80254748]
[1735046551872,2.5954,192.95,192.91,11.42254748]
[1735046552179,2.5954,192.95,192.91,14.80254748]
[1735046552567,2.5955,192.94,192.91,14.80254748]
[1735046554376,2.5955,192.94,192.91,6.5243]
[1735046554683,2.5955,192.94,192.91,3.1443]
[1735046555079,8.27824748,192.93,192.86,5.9765]
[1735046555378,5.1882,193.05,192.87,8.27824748]
[1735046555587,2.5954,192.95,192.89,10.87424748]
[1735046555791,8.27824748,192.96,192.89,10.87424748]
[1735046556185,2.5955,192.94,192.89,10.87424748]
[1735046556387,8.27824748,192.94,192.89,8.27824748]
[1735046556591,8.27824748,192.94,192.88,3.38]
[1735046557086,8.27824748,192.94,192.88,11.65824748]
[1735046557287,8.27824748,192.94,192.88,8.27824748]
[1735046557588,8.27824748,192.92,192.87,4.8631]
[1735046557893,2.5962,192.89,192.87,4.8631]
[1735046558490,2.5964,192.87,192.84,8.27824748]
[1735046558696,2.5964,192.87,192.82,14.25514748]
[1735046559383,2.5962,192.89,192.84,2.5967]
[1735046559589,0.1204,192.96,192.86,8.27824748]
[1735046559790,8.27824748,192.93,192.86,8.27824748]
[1735046560190,2.5957,192.92,192.87,2.5963]
[1735046560492,2.5957,192.92,192.86,8.27824748]
[1735046560690,2.5957,192.92,192.88,8.27824748]
[1735046561592,2.5956,192.94,192.88,11.65824748]
[1735046561893,8.27824748,192.95,192.9,8.27824748]
[1735046562090,2.5955,192.94,192.9,8.27824748]
[1735046563594,1.4879,193.03,192.9,8.27824748]
[1735046563792,8.27824748,192.99,192.92,8.27824748]
[1735046563985,8.27824748,192.97,192.9,8.27824748]
[1735046564586,8.27824748,192.95,192.88,3.38]
[1735046564790,8.27824748,192.93,192.85,8.27824748]
[1735046566093,2.596,192.9,192.85,8.27824748]
[1735046567496,2.596,192.9,192.87,8.27824748]
[1735046569495,8.27824748,192.93,192.87,8.27824748]
[1735046570197,2.5963,192.88,192.85,11.65824748]
[1735046570598,8.27824748,192.91,192.83,8.27824748]
[1735046570798,8.27824748,192.89,192.84,3.38]
[1735046571195,8.27824748,192.87,192.8,4.6246]
[1735046571396,8.27824748,192.85,192.8,1.5418]
[1735046571595,8.27824748,192.86,192.8,9.82004748]
[1735046573002,8.27824748,192.86,192.8,1.5418]
[1735046573502,2.5971,192.82,192.8,1.5418]
[1735046575706,8.27824748,192.84,192.75,2.5979]
[1735046575895,8.27824748,192.84,192.77,8.27824748]
[1735046576698,8.27824748,192.84,192.75,4.0783]
[1735046576699,8.27824748,192.8,192.75,1.4804]
[1735046577503,2.5976,192.78,192.75,1.4804]
[1735046578501,8.27824748,192.8,192.74,9.83904748]
[1735046578502,2.5978,192.77,192.74,9.83904748]
[1735046578802,8.27824748,192.76,192.7,11.65824748]
[1735046579004,2.5981,192.75,192.72,8.27824748]
[1735046579200,8.27824748,192.78,192.72,8.27824748]
[1735046579703,2.5978,192.77,192.72,8.27824748]
[1735046580002,3.38,192.87,192.74,8.27824748]
[1735046580200,8.27824748,192.81,192.74,8.27824748]
[1735046581102,3.38,192.87,192.76,8.27824748]
[1735046581310,8.27824748,192.83,192.76,8.27824748]
[1735046581497,2.5975,192.8,192.76,8.27824748]
[1735046581702,2.5975,192.8,192.78,8.27824748]
[1735046582110,3.36,192.9,192.78,8.27824748]
[1735046582307,8.27824748,192.87,192.81,8.27824748]
[1735046582507,8.27824748,192.87,192.77,4.8334]
[1735046582810,2.597,192.83,192.8,8.27824748]
[1735046584205,2.5964,192.85,192.8,8.27824748]
[1735046584408,8.27824748,192.87,192.8,8.27824748]
[1735046584613,8.27824748,192.85,192.77,8.1934]
[1735046584915,8.27824748,192.83,192.77,16.47164748]
[1735046585209,8.27824748,192.83,192.77,14.84574748]
[1735046585514,8.27824748,192.85,192.77,14.84574748]
[1735046585704,8.27824748,192.85,192.79,8.27824748]
[1735046586110,8.27824748,192.87,192.79,8.27824748]
[1735046586407,4.9951,192.92,192.81,10.87514748]
[1735046586611,8.27824748,192.88,192.81,10.87514748]
[1735046587512,2.5963,192.86,192.81,10.87514748]
[1735046587808,3.36,192.96,192.83,8.27824748]
[1735046588013,8.27824748,192.91,192.83,11.63824748]
[1735046588212,8.27824748,192.91,192.84,2.5965]
[1735046588213,2.596,192.88,192.84,2.5965]
[1735046588511,3.36,192.97,192.83,11.63824748]
[1735046588712,2.5959,192.89,192.84,5.6584]
[1735046594112,8.27824748,192.88,192.84,3.0619]
[1735046594316,2.5962,192.87,192.84,3.0619]
[1735046595416,2.5964,192.85,192.81,14.23504748]
[1735046596009,4.8529,192.97,192.81,14.23504748]
[1735046596314,8.27824748,192.9,192.83,8.27824748]
[1735046596511,8.27824748,192.86,192.79,3.0103]
[1735046597113,2.5965,192.84,192.8,8.27824748]
[1735046597616,2.5964,192.86,192.81,2.5969]
[1735046597812,1.4943,192.96,192.82,8.27824748]
[1735046597813,8.27824748,192.9,192.82,8.27824748]
[1735046598120,8.27824748,192.92,192.84,8.27824748]
[1735046598617,2.5958,192.9,192.85,2.5964]
[1735046598813,2.5958,192.9,192.84,8.27824748]
[1735046599016,10.87384748,192.92,192.87,2.5961]
[1735046599213,8.27824748,192.92,192.83,3.36]
[1735046599413,8.27824748,192.9,192.83,11.63824748]
[1735046599813,8.27824748,192.9,192.83,14.23484748]
[1735046599814,2.5961,192.88,192.83,14.23484748]
[1735046601619,2.5961,192.88,192.84,2.5965]
[1735046602613,8.27824748,192.88,192.79,3.0103]
[1735046602821,8.27824748,192.86,192.79,3.0103]
[1735046603023,8.27824748,192.86,192.79,11.28854748]
[1735046603210,2.5965,192.84,192.79,13.88574748]
[1735046603416,2.5965,192.84,192.81,8.27824748]
[1735046604114,2.5964,192.85,192.8,2.597]
[1735046604518,12.92850259,192.91,192.79,3.0103]
[1735046604717,3.36,192.93,192.81,12.92850259]
[1735046605026,12.92850259,192.94,192.81,12.92850259]
[1735046605216,2.596,192.88,192.84,2.5965]
[1735046605417,12.92850259,192.94,192.8,12.92850259]
[1735046606520,2.5961,192.88,192.83,2.5966]
[1735046606720,2.5961,192.88,192.84,3.36]
[1735046608320,2.5958,192.9,192.85,2.5963]
[1735046608516,2.5958,192.9,192.84,3.36]
[1735046610119,2.5958,192.9,192.85,2.5964]
[1735046610720,2.5959,192.89,192.85,2.5964]
[1735046612120,12.92850259,192.94,192.86,2.5962]
[1735046613518,2.5958,192.9,192.86,2.5962]
[1735046613719,12.92850259,192.94,192.84,3.36]
[1735046613915,12.92850259,192.94,192.87,2.5961]
[1735046613916,2.5956,192.91,192.87,2.5961]
[1735046615922,12.92850259,192.94,192.86,1.4767]
[1735046616117,2.5957,192.9,192.86,4.0729]
[1735046618023,2.5957,192.9,192.86,5.6902]
[1735046621826,15.52380259,192.94,192.86,5.6902]
[1735046622431,15.52380259,192.94,192.87,2.5961]
[1735046623729,2.595,192.96,192.86,3.094]
[1735046624534,2.595,192.96,192.89,2.5957]
[1735046624836,2.595,192.96,192.86,3.094]
[1735046625424,2.595,192.96,192.86,16.02250259]
[1735046626132,10.86209567,192.96,192.89,8.26709567]
[1735046626328,10.86209567,192.96,192.9,3.4]
[1735046626533,10.86209567,192.96,192.9,5.9957]
[1735046627535,2.5945,193.0,192.94,2.5951]
[1735046627731,8.26709567,192.98,192.94,2.5951]
[1735046627935,8.26709567,192.98,192.91,8.26709567]
[1735046628129,8.26709567,192.96,192.92,2.5953]
[1735046628633,2.5945,192.99,192.91,8.26709567]
[1735046628827,8.26709567,193.0,192.93,8.26709567]
[1735046629238,8.26709567,193.0,192.97,2.5947]
[1735046629633,1.6091,193.06,192.96,3.4]
[1735046629833,8.26709567,193.03,192.99,2.5945]
[1735046630030,8.26709567,193.03,192.97,3.4]
[1735046630231,8.26709567,193.03,192.97,11.66709567]
[1735046630632,28.87728297,193.07,192.97,11.66709567]
[1735046630936,37.14437864,193.07,192.99,8.26709567]
[1735046631138,8.26709567,193.07,192.99,8.26709567]
[1735046631929,8.26709567,193.07,192.98,3.1997]
[1735046632132,10.86039567,193.09,193.01,8.26709567]
[1735046632327,10.86039567,193.09,193.03,8.26709567]
[1735046633638,10.86039567,193.09,193.04,2.5938]
[1735046634335,2.5934,193.08,193.03,8.26709567]
[1735046635840,10.86059567,193.07,193.0,8.26709567]
[1735046636038,10.86059567,193.07,193.0,11.66709567]
[1735046636340,10.86059567,193.07,193.0,3.4]
[1735046636538,10.86059567,193.07,193.0,11.66709567]
[1735046636737,8.26709567,193.03,192.98,2.5946]
[1735046637729,8.26709567,193.03,192.99,2.5945]
[1735046638135,3.4,193.09,192.99,8.26709567]
[1735046638337,10.86079567,193.06,193.0,2.5942]
[1735046639240,8.26709567,193.06,192.99,8.26709567]
[1735046639441,2.5937,193.05,192.99,8.26709567]
[1735046640336,8.26709567,193.06,192.97,3.4]
[1735046640533,2.594,193.03,192.99,8.26709567]
[1735046641035,8.26709567,193.06,192.99,8.26709567]
[1735046641240,2.5938,193.04,192.99,10.86149567]
[1735046641439,8.26709567,193.06,192.99,8.26709567]
[1735046641635,3.1553,193.12,193.01,8.26709567]
[1735046641838,2.5934,193.08,193.03,2.5939]
[1735046642042,10.86049567,193.08,193.03,2.5939]
[1735046642244,3.6242,193.18,193.07,2.5933]
[1735046642442,8.26709567,193.11,193.07,2.5933]
[1735046642941,1.5919,193.17,193.07,8.26709567]
[1735046643147,8.26709567,193.14,193.07,8.26709567]
[1735046643542,8.26709567,193.14,193.09,8.26709567]
[1735046643543,2.5925,193.14,193.09,8.26709567]
[1735046643850,2.5925,193.14,192.96,1.5212]
[1735046643851,8.26709567,193.16,193.1,11.62709567]
[1735046644044,8.26709567,193.16,193.1,8.26709567]
[1735046644645,2.5925,193.14,193.1,10.86009567]
[1735046644942,1.4943,193.19,193.1,8.26709567]
[1735046645147,2.5922,193.17,193.12,2.5926]
[1735046645337,8.26709567,193.16,193.1,8.26709567]
[1735046645542,1.4943,193.19,193.09,3.36]
[1735046645745,8.26709567,193.17,193.11,8.26709567]
[1735046645945,8.26709567,193.19,193.13,8.26709567]
[1735046646147,12.88608053,193.22,193.1,12.88608053]
[1735046646348,2.5919,193.19,193.12,2.5928]
[1735046646648,12.88608053,193.22,193.12,2.5928]
[1735046646851,2.5921,193.18,193.12,2.5928]
[1735046647053,2.5921,193.18,193.1,12.88608053]
[1735046647054,12.88608053,193.22,193.1,12.88608053]
[1735046647547,1.5919,193.24,193.18,2.592]
[1735046647749,12.88608053,193.25,193.18,2.592]
[1735046647949,2.5914,193.23,193.18,2.592]
[1735046648250,12.88608053,193.28,193.17,3.36]
[1735046648452,12.88608053,193.28,193.21,2.5915]
[1735046649048,2.591,193.26,193.21,2.5915]
[1735046649246,12.88608053,193.28,193.21,2.5915]
[1735046649450,12.88608053,193.28,193.2,2.5917]
[1735046649651,2.591,193.25,193.2,2.5917]
[1735046650750,2.5909,193.27,193.2,2.5916]
[1735046651054,12.88608053,193.31,193.16,12.88608053]
[1735046651253,2.5911,193.25,193.21,2.5916]
[1735046651453,12.88608053,193.28,193.17,3.36]
[1735046651855,12.88608053,193.28,193.14,3.0868]
[1735046652051,12.88608053,193.24,193.14,3.0868]
[1735046652851,2.5918,193.19,193.14,3.0868]
[1735046653259,12.88608053,193.24,193.14,3.0868]
[1735046653753,12.88608053,193.28,193.15,12.88608053]
[1735046653952,2.591,193.26,193.19,2.5918]
[1735046654158,12.88608053,193.28,193.19,3.36]
[1735046654658,2.591,193.26,193.19,3.36]
[1735046654855,3.36,193.3,193.19,3.36]
[1735046655058,2.5907,193.28,193.22,2.5914]
[1735046655362,15.97508053,193.31,193.22,2.5914]
[1735046655653,2.5913,193.23,193.19,5.9517]
[1735046655854,12.88608053,193.28,193.19,5.9517]
[1735046656158,15.97508053,193.31,193.19,3.36]
[1735046656759,2.5909,193.27,193.22,2.5914]
[1735046656955,15.97508053,193.31,193.19,3.36]
[1735046657865,12.88608053,193.28,193.19,3.36]
[1735046658658,15.97508053,193.31,193.19,3.36]
[1735046659055,15.97508053,193.31,193.19,4.9093]
[1735046659363,2.5907,193.28,193.23,2.5912]
[1735046659564,2.5907,193.28,193.19,4.9093]
[1735046659866,2.5907,193.28,193.23,2.5912]